Departmental Area,Entity,Payment Date,Expense type,Expense Area,Supplier Name,Payment Reference,      Invoice Distribution Amount      ,Description,Supplier Type,Expenditure Type
UK Statistics Family,Office for National Statistics,02/04/2024,EXP - PURCHASE OF GOODS/SERVICES - DATA ACQUISITION,Analysis Microdata And Engagement,Nisra,296279," 36,000.00 ",Data Acquisition,Large,Programme Expenditure
UK Statistics Family,Office for National Statistics,02/04/2024,Exp - Purchase Of Goods/Services - IT Contractual Services,INTEGRATED DATA STRATEGY AND DELIVERY,CTS (Cloud Technology Solutions Ltd),296289," 79,527.60 ",Information Management Services,Large,Programme Expenditure
UK Statistics Family,Office for National Statistics,02/04/2024,Training & Development,UKSA,Cabinet Office,296298," 16,680.00 ",Training and Educational Services,Large,Programme Expenditure
UK Statistics Family,Office for National Statistics,02/04/2024,Training & Development,UKSA,Cabinet Office,296298," 13,500.00 ",Training and Educational Services,Large,Programme Expenditure
UK Statistics Family,Office for National Statistics,02/04/2024,Training & Development,Census White Paper,Cabinet Office,296298," 13,500.00 ",Training and Educational Services,Large,Programme Expenditure
UK Statistics Family,Office for National Statistics,02/04/2024,Training & Development,Business Change Support,Cabinet Office,296298," 13,500.00 ",Training and Educational Services,Large,Programme Expenditure
UK Statistics Family,Office for National Statistics,02/04/2024,Training & Development,Business Statistics Transformation,Cabinet Office,296298," 33,360.00 ",Training and Educational Services,Large,Programme Expenditure
UK Statistics Family,Office for National Statistics,02/04/2024,Other Goods And Services,FAST STREAM RECHARGES - CABINET OFFICE,Cabinet Office,296298," 5,280.00 ",Fast Stream Services,Large,Programme Expenditure
UK Statistics Family,Office for National Statistics,02/04/2024,Exp - Purchase Of Goods/Services - IT Contractual Services,Office Of Chief Data And Information,Alexander Mann Solutions Limited,296306," 25,213.18 ",Information Management Services,Large,Programme Expenditure
UK Statistics Family,Office for National Statistics,02/04/2024,Exp - Purchase Of Goods And Services Consultants,Economic Statistics,Parity Resources Limited,296309," 1,458.42 ",Information Management Services,Large,Programme Expenditure
UK Statistics Family,Office for National Statistics,02/04/2024,Exp - Purchase Of Goods/Services - Contractors,Testing,Parity Resources Limited,296309," 2,699.22 ",Information Management Services,Large,Programme Expenditure
UK Statistics Family,Office for National Statistics,02/04/2024,Exp - Purchase Of Goods/Services - Contractors,CDIO UNGP,Parity Resources Limited,296309," 4,600.50 ",Information Management Services,Large,Programme Expenditure
UK Statistics Family,Office for National Statistics,02/04/2024,Exp - Purchase Of Goods/Services - Contractors,Strategy And Architecture,Parity Resources Limited,296309," 4,500.00 ",Information Management Services,Large,Programme Expenditure
UK Statistics Family,Office for National Statistics,02/04/2024,Exp - Purchase Of Goods/Services - Contractors,IT Applications,Parity Resources Limited,296309," 3,900.00 ",Information Management Services,Large,Programme Expenditure
UK Statistics Family,Office for National Statistics,02/04/2024,Exp - Short-Term Contract & Agency Staff - Full Cost,Interviewer Management FiF,Parity Resources Limited,296309," 15,998.44 ",Information Management Services,Large,Programme Expenditure
UK Statistics Family,Office for National Statistics,02/04/2024,Exp - Purchase Of Goods/Services - Field Costs,Interviewer Management FiF,Parity Resources Limited,296309," 2,883.91 ",Information Management Services,Large,Programme Expenditure
UK Statistics Family,Office for National Statistics,02/04/2024,Exp - Purchase Of Goods/Services - Field Costs,Interviewer Support,Parity Resources Limited,296309, 16.50 ,Information Management Services,Large,Programme Expenditure
UK Statistics Family,Office for National Statistics,02/04/2024,Training & Development,Learning And Capability,Catalyst IT Europ Ltd,296311," 60,192.00 ",Information Management Services,SME,Programme Expenditure
UK Statistics Family,Office for National Statistics,02/04/2024,Capital Major Works >25K,Property Newport,Vinci Construction UK Limited,296315," 12,198.00 ",Facilities Mangement Services,Large,Programme Expenditure
UK Statistics Family,Office for National Statistics,02/04/2024,Exp - Purchase Of Goods/Services - Accommodation & Bldng Management - Miscellaneous Minor Works,Property Newport,Vinci Construction UK Limited,296315," 1,533.94 ",Facilities Mangement Services,Large,Programme Expenditure
UK Statistics Family,Office for National Statistics,02/04/2024,Other Goods And Services,Property Newport,Vinci Construction UK Limited,296315," 14,494.02 ",Facilities Mangement Services,Large,Programme Expenditure
UK Statistics Family,Office for National Statistics,03/04/2024,Exp - Purchase Of Goods/Services - Incentive Payments,Interviewer Support,Pluxee UK Ltd,296600," 1,413.78 ",Survey Response Incentive Vouchers,Large,Programme Expenditure
UK Statistics Family,Office for National Statistics,03/04/2024,Exp - Purchase Of Goods/Services - Incentive Payments,Interviewer Support,Pluxee UK Ltd,296600, 207.06 ,Survey Response Incentive Vouchers,Large,Programme Expenditure
UK Statistics Family,Office for National Statistics,03/04/2024,Exp - Purchase Of Goods/Services - Incentive Payments,Interviewer Support,Pluxee UK Ltd,296600," 25,655.72 ",Survey Response Incentive Vouchers,Large,Programme Expenditure
UK Statistics Family,Office for National Statistics,03/04/2024,Exp - Purchase Of Goods/Services - Incentive Payments,Interviewer Support,Pluxee UK Ltd,296600, 6.44 ,Survey Response Incentive Vouchers,Large,Programme Expenditure
UK Statistics Family,Office for National Statistics,03/04/2024,Exp - Purchase Of Goods/Services - Incentive Payments,Interviewer Support,Pluxee UK Ltd,296600," 2,573.46 ",Survey Response Incentive Vouchers,Large,Programme Expenditure
UK Statistics Family,Office for National Statistics,03/04/2024,Exp - Purchase Of Goods/Services - Incentive Payments,Interviewer Support,Pluxee UK Ltd,296600," 21,495.32 ",Survey Response Incentive Vouchers,Large,Programme Expenditure
UK Statistics Family,Office for National Statistics,03/04/2024,Exp - Purchase Of Goods/Services - Incentive Payments,Crime Statistics,Pluxee UK Ltd,296600," 1,173.34 ",Survey Response Incentive Vouchers,Large,Programme Expenditure
UK Statistics Family,Office for National Statistics,03/04/2024,Exp - Purchase Of Goods/Services - Incentive Payments,Crime Income And Wealth,Pluxee UK Ltd,296600, 532.44 ,Survey Response Incentive Vouchers,Large,Programme Expenditure
UK Statistics Family,Office for National Statistics,03/04/2024,Exp - Purchase Of Goods/Services - Incentive Payments,Crime Income And Wealth,Pluxee UK Ltd,296600, 113.39 ,Survey Response Incentive Vouchers,Large,Programme Expenditure
UK Statistics Family,Office for National Statistics,03/04/2024,Marketing & Media,Campaigns,Savanta Group Ltd,296602," 41,880.00 ",Marketing and Media Services,Large,Programme Expenditure
UK Statistics Family,Office for National Statistics,03/04/2024,Exp - Permanent UK Staff - PRP Voucher Payments,ONS Corporate Funds,Edenred (UK Group) Limited,296603," 90,300.00 ",Performance Reward Vouchers,Large,Programme Expenditure
UK Statistics Family,Office for National Statistics,04/04/2024,Capital Major Works >25K,Property Newport,Vinci Construction UK Limited,296730," 137,991.45 ",Facilities Mangement Services,Large,Programme Expenditure
UK Statistics Family,Office for National Statistics,04/04/2024,Capital Major Works >25K,Property Newport,Vinci Construction UK Limited,296730," 280,237.93 ",Facilities Mangement Services,Large,Programme Expenditure
UK Statistics Family,Office for National Statistics,04/04/2024,Capital Major Works >25K,Property Newport,Vinci Construction UK Limited,296730," 33,909.95 ",Facilities Mangement Services,Large,Programme Expenditure
UK Statistics Family,Office for National Statistics,04/04/2024,Capital Major Works >25K,Property Newport,Vinci Construction UK Limited,296730," 42,000.00 ",Facilities Mangement Services,Large,Programme Expenditure
UK Statistics Family,Office for National Statistics,04/04/2024,Capital Major Works >25K,Property Newport,Vinci Construction UK Limited,296730," 70,030.49 ",Facilities Mangement Services,Large,Programme Expenditure
UK Statistics Family,Office for National Statistics,04/04/2024,Major Works Over 25K,Property Newport,Vinci Construction UK Limited,296730," 297,534.61 ",Facilities Mangement Services,Large,Programme Expenditure
UK Statistics Family,Office for National Statistics,04/04/2024,Major Works Over 25K,Property Newport,Vinci Construction UK Limited,296730," 74,676.41 ",Facilities Mangement Services,Large,Programme Expenditure
UK Statistics Family,Office for National Statistics,04/04/2024,Exp - Purchase Of Goods/Services - Accommodation & Bldng Management - Miscellaneous Minor Works,Property Titchfield,Vinci Construction UK Limited,296730," 12,642.22 ",Facilities Mangement Services,Large,Programme Expenditure
UK Statistics Family,Office for National Statistics,04/04/2024,Exp - Purchase Of Goods And Services Consultants,INTEGRATED DATA STRATEGY AND DELIVERY,Pricewaterhousecoopers Llp,296733," 116,398.80 ",Consultancy,Large,Programme Expenditure
UK Statistics Family,Office for National Statistics,04/04/2024,Accommodation & Building Management,Property Darlington,Government Property Agency (GPA),296735," 163,043.00 ",Property Rental Services,Large,Programme Expenditure
UK Statistics Family,Office for National Statistics,05/04/2024,Exp - Purchase Of Goods/Services - Other Travel,Corporate Centre,Corporate Travel Management ,296801," 105,415.06 ",Travel and Accommodation,SME,Programme Expenditure
UK Statistics Family,Office for National Statistics,05/04/2024,Accommodation & Building Management,Interview Management IPS,Heathrow Airport,296803," 37,119.27 ",Rental Charges,Large,Programme Expenditure
UK Statistics Family,Office for National Statistics,05/04/2024,Exp - Purchase Of Goods/Services - Contractors,IT Applications,Certes Computing Ltd,296808," 17,160.72 ",Information Management Services,SME,Programme Expenditure
UK Statistics Family,Office for National Statistics,05/04/2024,Exp - Purchase Of Goods/Services - Contractors,IT Applications,Certes Computing Ltd,296808," 14,398.56 ",Information Management Services,SME,Programme Expenditure
UK Statistics Family,Office for National Statistics,05/04/2024,Other Professional Services,People Solutions,Government Legal Department,296818," 29,192.48 ",Legal Services,Large,Programme Expenditure
UK Statistics Family,Office for National Statistics,05/04/2024,EXP - PURCHASE OF GOODS/SERVICES -  NON IT CONTRACTUAL PAYMENTS,People Solutions,Health Partners Ltd,296820," 26,906.70 ",Occupational Health,Large,Programme Expenditure
UK Statistics Family,Office for National Statistics,05/04/2024,Exp - Purchase Of Goods/Services - IT Contractual Services,Data Architecture,ANDigital Limited,296821," 18,648.00 ",Information Management Services,large,Programme Expenditure
UK Statistics Family,Office for National Statistics,05/04/2024,Exp - Purchase Of Goods/Services - IT Contractual Services,CDIO UNGP,ANDigital Limited,296821," 18,648.00 ",Information Management Services,large,Programme Expenditure
UK Statistics Family,Office for National Statistics,08/04/2024,Surveys,"External Surveys, Research and Insights",Natcen Social Research,296901," 2,122,701.60 ",Statistical Services,Large,Programme Expenditure
UK Statistics Family,Office for National Statistics,09/04/2024,Training & Development,Business Assurance (OCP),Natcen Social Research,296982," 26,700.00 ",Training and Educational Services,Large,Programme Expenditure
UK Statistics Family,Office for National Statistics,09/04/2024,Rent Payable,Property Titchfield,Fareham Borough Council,296990," 611,520.00 ",Business Rates,Large,Programme Expenditure
UK Statistics Family,Office for National Statistics,09/04/2024,Rent Payable,Property Christchurch,"Bournemouth, Christchurch and Poole Council",296995," 187,005.00 ",Business Rates,SME,Programme Expenditure
UK Statistics Family,Office for National Statistics,10/04/2024,Exp - Purchase Of Goods And Services Consultants,INTEGRATED DATA STRATEGY AND DELIVERY,Deloitte,297208," 404,988.00 ",Consultancy,Large,Programme Expenditure
UK Statistics Family,Office for National Statistics,11/04/2024,Exp - Purchase Of Goods/Services - Telecoms,IT Operations,Cdw Limited,297281," 496,843.20 ",Information Management Services,Large,Programme Expenditure
UK Statistics Family,Office for National Statistics,12/04/2024,PPE - NON-PROPERTY (LEASED NON-PFI) - COST - ADDITIONS (AS LESSEE),IT Operations,Crown Hosting Data Centres Limited,297341," 63,191.00 ",Information Management Services,SME,Programme Expenditure
UK Statistics Family,Office for National Statistics,12/04/2024,Hosting,IT Operations,Crown Hosting Data Centres Limited,297341," 41,048.70 ",Information Management Services,SME,Programme Expenditure
UK Statistics Family,Office for National Statistics,12/04/2024,Exp - Purchase Of Goods/Services - IT Contractual Services,Digital Delivery,University of Durham,297344," 144,576.00 ",Statistical Services,Large,Programme Expenditure
UK Statistics Family,Office for National Statistics,12/04/2024,Exp - Purchase Of Goods/Services - IT Contractual Services,Strategy And Architecture,Ibm United Kingdom Ltd,297345," 34,143.24 ",Information Management Services,Large,Programme Expenditure
UK Statistics Family,Office for National Statistics,12/04/2024,"ICT Outsourcing, Maintenance And Support",Interviewer Support,Totalmobile Ltd,297358," 1,552.20 ",Information Management Services,SME,Programme Expenditure
UK Statistics Family,Office for National Statistics,12/04/2024,"ICT Outsourcing, Maintenance And Support",Interviewer Support,Totalmobile Ltd,297358," 127,170.00 ",Information Management Services,SME,Programme Expenditure
UK Statistics Family,Office for National Statistics,12/04/2024,Surveys,Crime Statistics,Verian,297361," 135,888.00 ",Statistical Services,SME,Programme Expenditure
UK Statistics Family,Office for National Statistics,12/04/2024,Exp - Purchase Of Goods/Services - IT Contractual Services,Digital Publishing,Insight Direct,297368," 15,600.02 ",Software Licenses,Large,Programme Expenditure
UK Statistics Family,Office for National Statistics,12/04/2024,Exp - Purchase Of Goods/Services - Other ICT Costs Software,Survey Processing Centre,Insight Direct,297368," 115,823.05 ",Software Licenses,Large,Programme Expenditure
UK Statistics Family,Office for National Statistics,12/04/2024,Hosting,CDIO UNGP,Google Cloud EMEA Limited,297369," 47,096.95 ",Information Management Services,Large,Programme Expenditure
UK Statistics Family,Office for National Statistics,12/04/2024,Exp - Purchase Of Goods/Services - IT Contractual Services,CDIO UNGP,ANDigital Limited,297373," 13,440.00 ",Information Management Services,large,Programme Expenditure
UK Statistics Family,Office for National Statistics,12/04/2024,Exp - Purchase Of Goods/Services - IT Contractual Services,Digital Delivery,ANDigital Limited,297373," 106,560.00 ",Information Management Services,large,Programme Expenditure
UK Statistics Family,Office for National Statistics,12/04/2024,Exp - Purchase Of Goods/Services - IT Contractual Services,Digital Delivery,ANDigital Limited,297373," 15,600.00 ",Information Management Services,large,Programme Expenditure
UK Statistics Family,Office for National Statistics,12/04/2024,Exp - Purchase Of Goods/Services - IT Contractual Services,Digital Delivery,ANDigital Limited,297373," 12,444.00 ",Information Management Services,large,Programme Expenditure
UK Statistics Family,Office for National Statistics,12/04/2024,EXP - PURCHASE OF GOODS/SERVICES - DATA ACQUISITION,Data As A Service,NHS England,297374," 74,016.00 ",Data Acquisition,Large,Programme Expenditure
UK Statistics Family,Office for National Statistics,12/04/2024,Exp - Purchase Of Goods/Services - Incentive Payments,Interviewer Support,Pluxee UK Ltd,297375," 4,237.04 ",Survey Response Incentive Vouchers,Large,Programme Expenditure
UK Statistics Family,Office for National Statistics,12/04/2024,Exp - Purchase Of Goods/Services - Incentive Payments,Interviewer Support,Pluxee UK Ltd,297375, 108.46 ,Survey Response Incentive Vouchers,Large,Programme Expenditure
UK Statistics Family,Office for National Statistics,12/04/2024,Exp - Purchase Of Goods/Services - Incentive Payments,Interviewer Support,Pluxee UK Ltd,297375," 31,410.11 ",Survey Response Incentive Vouchers,Large,Programme Expenditure
UK Statistics Family,Office for National Statistics,12/04/2024,Exp - Purchase Of Goods/Services - Incentive Payments,Interviewer Support,Pluxee UK Ltd,297375," 6,204.72 ",Survey Response Incentive Vouchers,Large,Programme Expenditure
UK Statistics Family,Office for National Statistics,12/04/2024,Exp - Purchase Of Goods/Services - Incentive Payments,Interviewer Support,Pluxee UK Ltd,297375," 99,746.51 ",Survey Response Incentive Vouchers,Large,Programme Expenditure
UK Statistics Family,Office for National Statistics,12/04/2024,Exp - Purchase Of Goods/Services - Incentive Payments,Crime Statistics,Pluxee UK Ltd,297375," 1,086.85 ",Survey Response Incentive Vouchers,Large,Programme Expenditure
UK Statistics Family,Office for National Statistics,12/04/2024,Exp - Purchase Of Goods/Services - Incentive Payments,Crime Income And Wealth,Pluxee UK Ltd,297375, 419.05 ,Survey Response Incentive Vouchers,Large,Programme Expenditure
UK Statistics Family,Office for National Statistics,12/04/2024,Exp - Purchase Of Goods And Services Consultants,Economic Statistics,Parity Resources Limited,297376," 1,458.42 ",Information Management Services,Large,Programme Expenditure
UK Statistics Family,Office for National Statistics,12/04/2024,Exp - Purchase Of Goods/Services - Contractors,Testing,Parity Resources Limited,297376," 2,159.38 ",Information Management Services,Large,Programme Expenditure
UK Statistics Family,Office for National Statistics,12/04/2024,Exp - Purchase Of Goods/Services - Contractors,Security Advisory,Parity Resources Limited,297376," 37,350.30 ",Information Management Services,Large,Programme Expenditure
UK Statistics Family,Office for National Statistics,12/04/2024,Exp - Purchase Of Goods/Services - Contractors,CDIO UNGP,Parity Resources Limited,297376," 3,680.40 ",Information Management Services,Large,Programme Expenditure
UK Statistics Family,Office for National Statistics,12/04/2024,Exp - Purchase Of Goods/Services - Contractors,Strategy And Architecture,Parity Resources Limited,297376," 4,500.00 ",Information Management Services,Large,Programme Expenditure
UK Statistics Family,Office for National Statistics,12/04/2024,Exp - Purchase Of Goods/Services - Contractors,IT Applications,Parity Resources Limited,297376," 3,120.00 ",Information Management Services,Large,Programme Expenditure
UK Statistics Family,Office for National Statistics,12/04/2024,Exp - Short-Term Contract & Agency Staff - Full Cost,Interviewer Management FiF,Parity Resources Limited,297376," 3,529.02 ",Information Management Services,Large,Programme Expenditure
UK Statistics Family,Office for National Statistics,12/04/2024,Exp - Purchase Of Goods/Services - Field Costs,Interviewer Management FiF,Parity Resources Limited,297376, 598.82 ,Information Management Services,Large,Programme Expenditure
UK Statistics Family,Office for National Statistics,12/04/2024,Exp - Short-Term Contract & Agency Staff - Full Cost,Interviewer Support,Parity Resources Limited,297376, 262.43 ,Information Management Services,Large,Programme Expenditure
UK Statistics Family,Office for National Statistics,12/04/2024,Exp - Purchase Of Goods/Services - Field Costs,Interviewer Support,Parity Resources Limited,297376, 25.80 ,Information Management Services,Large,Programme Expenditure
UK Statistics Family,Office for National Statistics,12/04/2024,Exp - Purchase Of Goods/Services - IT Contractual Services,Data Management Audit And Compliance,IDBI Solutions Limited,297377," 71,932.50 ",Information Management Services,SME,Programme Expenditure
UK Statistics Family,Office for National Statistics,15/04/2024,FM Contract Payments,Vinci Payments,Vinci Construction UK Limited,297481," 88,819.10 ",Facilities Mangement Services,Large,Programme Expenditure
UK Statistics Family,Office for National Statistics,15/04/2024,Exp - Purchase Of Goods/Services - Incentive Payments,Interviewer Support,Pluxee UK Ltd,297490, 581.74 ,Survey Response Incentive Vouchers,Large,Programme Expenditure
UK Statistics Family,Office for National Statistics,15/04/2024,Exp - Purchase Of Goods/Services - Incentive Payments,Interviewer Support,Pluxee UK Ltd,297490, 147.90 ,Survey Response Incentive Vouchers,Large,Programme Expenditure
UK Statistics Family,Office for National Statistics,15/04/2024,Exp - Purchase Of Goods/Services - Incentive Payments,Interviewer Support,Pluxee UK Ltd,297490," 21,149.70 ",Survey Response Incentive Vouchers,Large,Programme Expenditure
UK Statistics Family,Office for National Statistics,15/04/2024,Exp - Purchase Of Goods/Services - Incentive Payments,Interviewer Support,Pluxee UK Ltd,297490, 54.23 ,Survey Response Incentive Vouchers,Large,Programme Expenditure
UK Statistics Family,Office for National Statistics,15/04/2024,Exp - Purchase Of Goods/Services - Incentive Payments,Interviewer Support,Pluxee UK Ltd,297490," 3,855.26 ",Survey Response Incentive Vouchers,Large,Programme Expenditure
UK Statistics Family,Office for National Statistics,15/04/2024,Exp - Purchase Of Goods/Services - Incentive Payments,Interviewer Support,Pluxee UK Ltd,297490," 17,008.50 ",Survey Response Incentive Vouchers,Large,Programme Expenditure
UK Statistics Family,Office for National Statistics,15/04/2024,Exp - Purchase Of Goods/Services - Incentive Payments,Crime Statistics,Pluxee UK Ltd,297490, 493.00 ,Survey Response Incentive Vouchers,Large,Programme Expenditure
UK Statistics Family,Office for National Statistics,15/04/2024,Exp - Purchase Of Goods/Services - Incentive Payments,Crime Income And Wealth,Pluxee UK Ltd,297490, 167.62 ,Survey Response Incentive Vouchers,Large,Programme Expenditure
UK Statistics Family,Office for National Statistics,15/04/2024,Exp - Purchase Of Goods/Services - Incentive Payments,Crime Income And Wealth,Pluxee UK Ltd,297490, 34.51 ,Survey Response Incentive Vouchers,Large,Programme Expenditure
UK Statistics Family,Office for National Statistics,15/04/2024,EXP - PURCHASE OF GOODS/SERVICES - DATA ACQUISITION,Data As A Service,Telefonica UK Limited,297492," 56,309.59 ",Data Acquisition,Large,Programme Expenditure
UK Statistics Family,Office for National Statistics,17/04/2024,Rent Payable,Property Newport,Newport City Council,297771," 1,079,040.00 ",Business Rates,Large,Programme Expenditure
UK Statistics Family,Office for National Statistics,18/04/2024,Exp - Purchase Of Goods/Services - IT Contractual Services,Strategy And Architecture,Ibm United Kingdom Ltd,297881," 119,370.14 ",Information Management Services,Large,Programme Expenditure
UK Statistics Family,Office for National Statistics,19/04/2024,Exp - Purchase Of Goods/Services - Other Travel,Corporate Centre,Corporate Travel Management ,297989," 48,171.98 ",Travel and Accommodation,SME,Programme Expenditure
UK Statistics Family,Office for National Statistics,22/04/2024,EXP - PURCHASE OF GOODS/SERVICES - DATA ACQUISITION,Data As A Service,HMRC.,298092," 527,769.86 ",Data Acquisition,Large,Programme Expenditure
UK Statistics Family,Office for National Statistics,23/04/2024,End User Software And Hardware,IT Operations,Scc,298309," 80,542.40 ",Software Licenses,Large,Programme Expenditure
UK Statistics Family,Office for National Statistics,23/04/2024,End User Software And Hardware,Business Statistics Transformation,Scc,298309," 58,109.38 ",Software Licenses,Large,Programme Expenditure
UK Statistics Family,Office for National Statistics,23/04/2024,Exp - Short-Term Contract & Agency Staff - Full Cost,Interviewer Management FiF,Randstad Solutions Ltd,298313," 26,771.93 ",Short Term Agency staff,SME,Programme Expenditure
UK Statistics Family,Office for National Statistics,23/04/2024,Exp - Purchase Of Goods/Services - Field Costs,Interviewer Management FiF,Randstad Solutions Ltd,298313," 3,039.59 ",Short Term Agency staff,SME,Programme Expenditure
UK Statistics Family,Office for National Statistics,23/04/2024,EXP - PURCHASE OF GOODS/SERVICES - DATA ACQUISITION,Data As A Service,HMRC.,298315," 40,303.44 ",Data Acquisition,Large,Programme Expenditure
UK Statistics Family,Office for National Statistics,23/04/2024,End User Software And Hardware,Divisional Management,Granicus-Firmstep Limited,298320," 64,799.23 ",Software Licenses,Large,Programme Expenditure
UK Statistics Family,Office for National Statistics,24/04/2024,EXP - PURCHASE OF GOODS/SERVICES - DATA ACQUISITION,Data Science Campus,VISA EUROPE LIMITED,298473," 28,800.00 ",Data Acquisition,Large,Programme Expenditure
UK Statistics Family,Office for National Statistics,24/04/2024,Other Goods And Services,Data Science Campus,VISA EUROPE LIMITED,298473," 33,000.00 ",Data Acquisition,Large,Programme Expenditure
UK Statistics Family,Office for National Statistics,24/04/2024,Exp - Purchase Of Goods/Services - Incentive Payments,Interviewer Support,Pluxee UK Ltd,298474," 1,172.68 ",Survey Response Incentive Vouchers,Large,Programme Expenditure
UK Statistics Family,Office for National Statistics,24/04/2024,Exp - Purchase Of Goods/Services - Incentive Payments,Interviewer Support,Pluxee UK Ltd,298474, 267.34 ,Survey Response Incentive Vouchers,Large,Programme Expenditure
UK Statistics Family,Office for National Statistics,24/04/2024,Exp - Purchase Of Goods/Services - Incentive Payments,Interviewer Support,Pluxee UK Ltd,298474," 30,519.17 ",Survey Response Incentive Vouchers,Large,Programme Expenditure
UK Statistics Family,Office for National Statistics,24/04/2024,Exp - Purchase Of Goods/Services - Incentive Payments,Interviewer Support,Pluxee UK Ltd,298474, 109.97 ,Survey Response Incentive Vouchers,Large,Programme Expenditure
UK Statistics Family,Office for National Statistics,24/04/2024,Exp - Purchase Of Goods/Services - Incentive Payments,Interviewer Support,Pluxee UK Ltd,298474," 3,801.03 ",Survey Response Incentive Vouchers,Large,Programme Expenditure
UK Statistics Family,Office for National Statistics,24/04/2024,Exp - Purchase Of Goods/Services - Incentive Payments,Interviewer Support,Pluxee UK Ltd,298474," 37,992.04 ",Survey Response Incentive Vouchers,Large,Programme Expenditure
UK Statistics Family,Office for National Statistics,24/04/2024,Exp - Purchase Of Goods/Services - Incentive Payments,UKSA,Pluxee UK Ltd,298474, 24.65 ,Survey Response Incentive Vouchers,Large,Programme Expenditure
UK Statistics Family,Office for National Statistics,24/04/2024,Exp - Purchase Of Goods/Services - Incentive Payments,Crime Statistics,Pluxee UK Ltd,298474, 537.25 ,Survey Response Incentive Vouchers,Large,Programme Expenditure
UK Statistics Family,Office for National Statistics,24/04/2024,Exp - Purchase Of Goods/Services - Incentive Payments,Crime Income And Wealth,Pluxee UK Ltd,298474, 256.36 ,Survey Response Incentive Vouchers,Large,Programme Expenditure
UK Statistics Family,Office for National Statistics,24/04/2024,Exp - Purchase Of Goods/Services - Incentive Payments,Crime Income And Wealth,Pluxee UK Ltd,298474, 59.16 ,Survey Response Incentive Vouchers,Large,Programme Expenditure
UK Statistics Family,Office for National Statistics,24/04/2024,Exp - Purchase Of Goods And Services Consultants,Economic Statistics,Parity Resources Limited,298475," 1,458.42 ",Information Management Services,Large,Programme Expenditure
UK Statistics Family,Office for National Statistics,24/04/2024,Exp - Purchase Of Goods And Services Consultants,Analysis Microdata And Engagement,Parity Resources Limited,298475," 2,386.57 ",Information Management Services,Large,Programme Expenditure
UK Statistics Family,Office for National Statistics,24/04/2024,Exp - Purchase Of Goods/Services - Contractors,CDIO UNGP,Parity Resources Limited,298475," 4,600.50 ",Information Management Services,Large,Programme Expenditure
UK Statistics Family,Office for National Statistics,24/04/2024,Exp - Purchase Of Goods/Services - Contractors,Strategy And Architecture,Parity Resources Limited,298475," 10,526.26 ",Information Management Services,Large,Programme Expenditure
UK Statistics Family,Office for National Statistics,24/04/2024,Exp - Purchase Of Goods/Services - Contractors,IT Applications,Parity Resources Limited,298475," 3,120.00 ",Information Management Services,Large,Programme Expenditure
UK Statistics Family,Office for National Statistics,24/04/2024,Exp - Short-Term Contract & Agency Staff - Full Cost,Interviewer Management FiF,Parity Resources Limited,298475," 10,448.68 ",Information Management Services,Large,Programme Expenditure
UK Statistics Family,Office for National Statistics,24/04/2024,Exp - Purchase Of Goods/Services - Field Costs,Interviewer Management FiF,Parity Resources Limited,298475," 1,596.35 ",Information Management Services,Large,Programme Expenditure
UK Statistics Family,Office for National Statistics,24/04/2024,Exp - Purchase Of Goods/Services - Field Costs,Interviewer Support,Parity Resources Limited,298475, 20.70 ,Information Management Services,Large,Programme Expenditure
UK Statistics Family,Office for National Statistics,24/04/2024,EXP - PURCHASE OF GOODS/SERVICES -  NON IT CONTRACTUAL PAYMENTS,Best Practice And Impact,University of Southampton,298479," 53,753.00 ",Statistical Services,SME,Programme Expenditure
UK Statistics Family,Office for National Statistics,24/04/2024,Exp - Purchase Of Goods/Services - Contractors,Strategy And Architecture,La International,298483," 24,643.20 ",Information Management Services,SME,Programme Expenditure
UK Statistics Family,Office for National Statistics,24/04/2024,Exp - Purchase Of Goods/Services - Contractors,IT Applications,La International,298483," 19,240.95 ",Information Management Services,SME,Programme Expenditure
UK Statistics Family,Office for National Statistics,24/04/2024,Exp - Purchase Of Goods And Services Consultants,INTEGRATED DATA STRATEGY AND DELIVERY,Pricewaterhousecoopers Llp,298484," 631,437.60 ",Consultancy,Large,Programme Expenditure
UK Statistics Family,Office for National Statistics,24/04/2024,Surveys,Crime Statistics,Verian,298486," 133,477.20 ",Statistical Services,SME,Programme Expenditure
UK Statistics Family,Office for National Statistics,25/04/2024,Exp - Rentals Under Non-Pfi Operating Leases - Plant & Machinery,Survey Processing Centre,Computacenter (Uk) Limited,298593," 26,008.32 ",Equipment Rental,Large,Programme Expenditure
UK Statistics Family,Office for National Statistics,25/04/2024,Other Goods And Services,2023 CENSUS DATA TRANSFORMATION,The Sensible Code Company,298601," 302,400.00 ",Software Licenses,SME,Programme Expenditure
UK Statistics Family,Office for National Statistics,25/04/2024,"ICT Outsourcing, Maintenance And Support",IT Operations,Boxxe Ltd,298604," 33,163.40 ",Software Licenses,SME,Programme Expenditure
UK Statistics Family,Office for National Statistics,25/04/2024,End User Software And Hardware,IT Operations,Boxxe Ltd,298604," 18,666.52 ",Software Licenses,SME,Programme Expenditure
UK Statistics Family,Office for National Statistics,26/04/2024,End User Software And Hardware,IT Operations,Bytes Software Services Ltd,298686," 38,400.00 ",Software Licenses,Large,Programme Expenditure
UK Statistics Family,Office for National Statistics,26/04/2024,Exp - Seconded UK Staff - Basic Salary,Overseas Development,"Foreign, Commonwealth & Development Office",298690,"-23,063.42 ",Seconded Staff Charges,Large,Programme Expenditure
UK Statistics Family,Office for National Statistics,26/04/2024,EXP - PURCHASE OF GOODS/SERVICES -  NON IT CONTRACTUAL PAYMENTS,Overseas Development,"Foreign, Commonwealth & Development Office",298690," 165,274.30 ",FCDO Platform Charges,Large,Programme Expenditure
UK Statistics Family,Office for National Statistics,26/04/2024,Exp - Purchase Of Goods/Services - Incentive Payments,Interviewer Support,Pluxee UK Ltd,298693, 819.76 ,Survey Response Incentive Vouchers,Large,Programme Expenditure
UK Statistics Family,Office for National Statistics,26/04/2024,Exp - Purchase Of Goods/Services - Incentive Payments,Interviewer Support,Pluxee UK Ltd,298693, 167.62 ,Survey Response Incentive Vouchers,Large,Programme Expenditure
UK Statistics Family,Office for National Statistics,26/04/2024,Exp - Purchase Of Goods/Services - Incentive Payments,Interviewer Support,Pluxee UK Ltd,298693," 29,118.02 ",Survey Response Incentive Vouchers,Large,Programme Expenditure
UK Statistics Family,Office for National Statistics,26/04/2024,Exp - Purchase Of Goods/Services - Incentive Payments,Interviewer Support,Pluxee UK Ltd,298693, 29.58 ,Survey Response Incentive Vouchers,Large,Programme Expenditure
UK Statistics Family,Office for National Statistics,26/04/2024,Exp - Purchase Of Goods/Services - Incentive Payments,Interviewer Support,Pluxee UK Ltd,298693," 6,552.78 ",Survey Response Incentive Vouchers,Large,Programme Expenditure
UK Statistics Family,Office for National Statistics,26/04/2024,Exp - Purchase Of Goods/Services - Incentive Payments,Interviewer Support,Pluxee UK Ltd,298693," 43,218.87 ",Survey Response Incentive Vouchers,Large,Programme Expenditure
UK Statistics Family,Office for National Statistics,26/04/2024,Exp - Purchase Of Goods/Services - Incentive Payments,Census White Paper,Pluxee UK Ltd,298693, 98.60 ,Survey Response Incentive Vouchers,Large,Programme Expenditure
UK Statistics Family,Office for National Statistics,26/04/2024,Exp - Purchase Of Goods/Services - Incentive Payments,Crime Statistics,Pluxee UK Ltd,298693, 108.46 ,Survey Response Incentive Vouchers,Large,Programme Expenditure
UK Statistics Family,Office for National Statistics,26/04/2024,Exp - Purchase Of Goods/Services - Incentive Payments,Crime Income And Wealth,Pluxee UK Ltd,298693, 138.04 ,Survey Response Incentive Vouchers,Large,Programme Expenditure
UK Statistics Family,Office for National Statistics,26/04/2024,Exp - Purchase Of Goods/Services - Incentive Payments,Crime Income And Wealth,Pluxee UK Ltd,298693, 34.51 ,Survey Response Incentive Vouchers,Large,Programme Expenditure
UK Statistics Family,Office for National Statistics,26/04/2024,Exp - Purchase Of Goods/Services - Telecoms,IT Operations,Bt Global Services,298694," 38,228.56 ",Telecommunications,Large,Programme Expenditure
UK Statistics Family,Office for National Statistics,09/04/2024,Exp - Purchase Of Goods/Servcies - Stationery,Lodgecard,Royal Bank of Scotland,30004554, 792.18 ,Multiple Procurement Card Purchases  - Stationery ,Large,Programme Expenditure
UK Statistics Family,Office for National Statistics,09/04/2024,Other Goods And Services,GPC,Royal Bank of Scotland,30004554," 42,049.85 ",Multiple Procurement Card Purchases - other goods/services  ,Large,Programme Expenditure
UK Statistics Family,Office for National Statistics,09/04/2024,Exp - Purchase Of Goods/Services - Other Travel,Car Hire,Royal Bank of Scotland,30004554," 30,359.94 ",Multiple Procurement Card Purchases - Vehicle Hire  ,Large,Programme Expenditure
UK Statistics Family,Office for National Statistics,18/04/2024,Surveys,HALE,African Institute for Mathematical Sciences,30004559," 61,682.30 ",Collaborative Research Grant Funding,Large,Programme Expenditure
UK Statistics Family,Office for National Statistics,22/04/2024,Electricity,Property Newport,Edf Energy,30004563," 33,691.53 ",Utility Costs,Large,Programme Expenditure
UK Statistics Family,Office for National Statistics,30/04/2024,End User Software And Hardware,CLOUD ARCHITECTURE,CTS (Cloud Technology Solutions Ltd),30004573," 129,477.60 ",Information Management Services,Large,Programme Expenditure
UK Statistics Family,Office for National Statistics,30/04/2024,Exp - Purchase Of Goods And Services Consultants,INTEGRATED DATA STRATEGY AND DELIVERY,Pricewaterhousecoopers Llp,30004574," 974,628.00 ",Consultancy,Large,Programme Expenditure
UK Statistics Family,Office for National Statistics,30/04/2024,Exp - Purchase Of Goods And Services Consultants,Productivity Research And Professional Development,Kings College London,30004575," 644,203.20 ",Statistical Services,Large,Programme Expenditure
,,,,,,," 12,978,113.80 ",,,
